[Event "Titled Tuesday Blitz September 28 2021"]
[White "Ezat, Mohamed"]
[Black "Pavlidis, Anastasios"]
[WhiteFideId "10600906"]
[BlackFideId "4208404"]
[WhiteElo "2414"]
[BlackElo "2136"]
[Result "1/2-1/2"]
[Round "09"]
[TimeControl "180+1"]
[Date "2021.09.28"]
[WhiteClock "0:00:11"]
[BlackClock "0:00:58"]

1. d4 {[%clk 0:00:25]}  g6 {[%clk 0:02:56]} 2. c4 {[%clk 0:00:26]}  Bg7 {[%clk 0:02:56]} 3. e4 {[%clk 0:00:26]}  d6 {[%clk 0:02:55]} 4. Nc3 {[%clk 0:00:25]}  Nf6 {[%clk 0:02:55]} 5. Be2 {[%clk 0:00:25]}  O-O {[%clk 0:02:55]} 6. Bg5 {[%clk 0:00:26]}  Nbd7 {[%clk 0:02:53]} 7. Qd2 {[%clk 0:00:25]}  a6 {[%clk 0:02:51]} 8. h4 {[%clk 0:00:25]}  b5 {[%clk 0:02:51]} 9. a3 {[%clk 0:00:24]}  bxc4 {[%clk 0:02:50]} 10. Bxc4 {[%clk 0:00:24]}  Bb7 {[%clk 0:02:49]} 11. f3 {[%clk 0:00:24]}  d5 {[%clk 0:02:46]} 12. Bd3 {[%clk 0:00:20]}  dxe4 {[%clk 0:02:46]} 13. fxe4 {[%clk 0:00:21]}  c5 {[%clk 0:02:46]} 14. d5 {[%clk 0:00:19]}  Ne5 {[%clk 0:02:46]} 15. Nf3 {[%clk 0:00:20]}  Nxd3+ {[%clk 0:02:45]} 16. Qxd3 {[%clk 0:00:20]}  e6 {[%clk 0:02:41]} 17. e5 {[%clk 0:00:20]}  exd5 {[%clk 0:02:34]} 18. exf6 {[%clk 0:00:19]}  Bxf6 {[%clk 0:02:35]} 19. O-O {[%clk 0:00:18]}  c4 {[%clk 0:02:32]} 20. Qd2 {[%clk 0:00:18]}  Qb6+ {[%clk 0:02:20]} 21. Kh1 {[%clk 0:00:17]}  Rad8 {[%clk 0:02:15]} 22. Bxf6 {[%clk 0:00:17]}  Qxf6 {[%clk 0:02:15]} 23. Ng5 {[%clk 0:00:17]}  Qg7 {[%clk 0:02:10]} 24. Rae1 {[%clk 0:00:17]}  Qh6 {[%clk 0:02:09]} 25. Qf4 {[%clk 0:00:17]}  Bc8 {[%clk 0:02:04]} 26. Ne2 {[%clk 0:00:17]}  Rde8 {[%clk 0:02:01]} 27. Nd4 {[%clk 0:00:16]}  Rxe1 {[%clk 0:01:58]} 28. Rxe1 {[%clk 0:00:17]}  f6 {[%clk 0:01:59]} 29. Nh3 {[%clk 0:00:15]}  Qh5 {[%clk 0:01:54]} 30. Qc7 {[%clk 0:00:13]}  Bxh3 {[%clk 0:01:49]} 31. gxh3 {[%clk 0:00:13]}  Qxh4 {[%clk 0:01:49]} 32. Re7 {[%clk 0:00:13]}  Qxh3+ {[%clk 0:01:50]} 33. Kg1 {[%clk 0:00:14]}  Qg4+ {[%clk 0:01:47]} 34. Kf1 {[%clk 0:00:14]}  Qh3+ {[%clk 0:01:42]} 35. Ke2 {[%clk 0:00:14]}  Kh8 {[%clk 0:01:43]} 36. Nf3 {[%clk 0:00:13]}  Qh5 {[%clk 0:01:35]} 37. Rf7 {[%clk 0:00:13]}  Re8+ {[%clk 0:01:33]} 38. Re7 {[%clk 0:00:14]}  g5 {[%clk 0:01:30]} 39. Rxe8+ {[%clk 0:00:13]}  Qxe8+ {[%clk 0:01:30]} 40. Kf2 {[%clk 0:00:13]}  Kg8 {[%clk 0:01:27]} 41. Nd4 {[%clk 0:00:13]}  Qf7 {[%clk 0:01:20]} 42. Qc8+ {[%clk 0:00:13]}  Kg7 {[%clk 0:01:18]} 43. Nf5+ {[%clk 0:00:14]}  Kg6 {[%clk 0:01:18]} 44. Nd6 {[%clk 0:00:14]}  Qe7 {[%clk 0:01:13]} 45. Qf5+ {[%clk 0:00:15]}  Kg7 {[%clk 0:01:12]} 46. Qxd5 {[%clk 0:00:15]}  Qe5 {[%clk 0:01:07]} 47. Qxe5 {[%clk 0:00:16]}  fxe5 {[%clk 0:01:07]} 48. Nxc4 {[%clk 0:00:17]}  Kf6 {[%clk 0:01:07]} 49. b4 {[%clk 0:00:17]}  h5 {[%clk 0:01:06]} 50. a4 {[%clk 0:00:17]}  Ke6 {[%clk 0:01:06]} 51. b5 {[%clk 0:00:18]}  axb5 {[%clk 0:01:06]} 52. axb5 {[%clk 0:00:18]}  Kd5 {[%clk 0:01:06]} 53. b6 {[%clk 0:00:19]}  Kc6 {[%clk 0:01:06]} 54. Kf3 {[%clk 0:00:20]}  g4+ {[%clk 0:01:05]} 55. Kg3 {[%clk 0:00:20]}  e4 {[%clk 0:01:05]} 56. Kf4 {[%clk 0:00:20]}  h4 {[%clk 0:01:01]} 57. Kxg4 {[%clk 0:00:20]}  e3 {[%clk 0:01:00]} 58. Kf3 {[%clk 0:00:20]}  h3 {[%clk 0:01:00]} 59. Nxe3 {[%clk 0:00:11]}  Kxb6 {[%clk 0:00:59]} 60. Kg3 {[%clk 0:00:11]}  h2 {[%clk 0:00:58]} 61. Kxh2 {[%clk 0:00:11]} 1/2-1/2


[Site "https://www.chess.com"]

[Event "Titled Tuesday Blitz September 28 2021"]
[White "Gallego Alcaraz, Andres Felipe"]
[Black "Gracia Alvarez, Gerardo Antonio"]
[WhiteFideId "4402669"]
[BlackFideId "5109124"]
[WhiteElo "2394"]
[BlackElo "2148"]
[Result "1/2-1/2"]
[Round "09"]
[TimeControl "180+1"]
[Date "2021.09.28"]
[WhiteClock "0:00:42"]
[BlackClock "0:00:08"]

1. Nf3 {[%clk 0:02:55]}  c5 {[%clk 0:02:59]} 2. c4 {[%clk 0:02:54]}  g6 {[%clk 0:02:58]} 3. g3 {[%clk 0:02:53]}  Nc6 {[%clk 0:02:57]} 4. Bg2 {[%clk 0:02:49]}  Bg7 {[%clk 0:02:58]} 5. O-O {[%clk 0:02:49]}  e6 {[%clk 0:02:58]} 6. Nc3 {[%clk 0:02:48]}  Nge7 {[%clk 0:02:57]} 7. d3 {[%clk 0:02:48]}  O-O {[%clk 0:02:56]} 8. Be3 {[%clk 0:02:46]}  Nd4 {[%clk 0:02:48]} 9. Bxd4 {[%clk 0:02:42]}  cxd4 {[%clk 0:02:47]} 10. Nb5 {[%clk 0:02:40]}  d5 {[%clk 0:02:28]} 11. Nbxd4 {[%clk 0:02:29]}  Qb6 {[%clk 0:02:19]} 12. e3 {[%clk 0:02:18]}  Qxb2 {[%clk 0:02:06]} 13. Qb3 {[%clk 0:02:03]}  Qxb3 {[%clk 0:01:53]} 14. axb3 {[%clk 0:02:03]}  Nc6 {[%clk 0:01:40]} 15. Nxc6 {[%clk 0:01:43]}  bxc6 {[%clk 0:01:41]} 16. Ra3 {[%clk 0:01:43]}  a5 {[%clk 0:01:15]} 17. d4 {[%clk 0:01:42]}  Ba6 {[%clk 0:01:04]} 18. Rc1 {[%clk 0:01:37]}  Rfb8 {[%clk 0:00:54]} 19. Nd2 {[%clk 0:01:35]}  Bf8 {[%clk 0:00:53]} 20. c5 {[%clk 0:01:32]}  Bd3 {[%clk 0:00:40]} 21. Bf1 {[%clk 0:01:21]}  Bxf1 {[%clk 0:00:39]} 22. Kxf1 {[%clk 0:01:22]}  Rb5 {[%clk 0:00:39]} 23. Ke2 {[%clk 0:01:21]}  e5 {[%clk 0:00:38]} 24. Kd3 {[%clk 0:01:20]}  exd4 {[%clk 0:00:34]} 25. exd4 {[%clk 0:01:21]}  Bh6 {[%clk 0:00:33]} 26. f4 {[%clk 0:01:21]}  Bg7 {[%clk 0:00:32]} 27. Rca1 {[%clk 0:01:16]}  Rb4 {[%clk 0:00:20]} 28. Nf3 {[%clk 0:01:05]}  Rab8 {[%clk 0:00:20]} 29. Ne5 {[%clk 0:00:48]}  Bxe5 {[%clk 0:00:18]} 30. fxe5 {[%clk 0:00:48]}  Rxb3+ {[%clk 0:00:18]} 31. Rxb3 {[%clk 0:00:48]}  Rxb3+ {[%clk 0:00:19]} 32. Kc2 {[%clk 0:00:49]}  Rb5 {[%clk 0:00:17]} 33. Rf1 {[%clk 0:00:48]}  Rb4 {[%clk 0:00:16]} 34. Kc3 {[%clk 0:00:47]}  Rc4+ {[%clk 0:00:16]} 35. Kd3 {[%clk 0:00:48]}  f5 {[%clk 0:00:16]} 36. exf6 {[%clk 0:00:47]}  Kf7 {[%clk 0:00:16]} 37. g4 {[%clk 0:00:47]}  h6 {[%clk 0:00:16]} 38. h4 {[%clk 0:00:47]}  Rb4 {[%clk 0:00:16]} 39. g5 {[%clk 0:00:47]}  hxg5 {[%clk 0:00:16]} 40. hxg5 {[%clk 0:00:48]}  Rb3+ {[%clk 0:00:16]} 41. Kc2 {[%clk 0:00:46]}  Rg3 {[%clk 0:00:17]} 42. Re1 {[%clk 0:00:46]}  Rxg5 {[%clk 0:00:16]} 43. Re7+ {[%clk 0:00:47]}  Kxf6 {[%clk 0:00:17]} 44. Rc7 {[%clk 0:00:48]}  Rg2+ {[%clk 0:00:09]} 45. Kb3 {[%clk 0:00:46]}  Rg4 {[%clk 0:00:07]} 46. Rxc6+ {[%clk 0:00:45]}  Kf5 {[%clk 0:00:08]} 47. Kc3 {[%clk 0:00:44]}  Rg3+ {[%clk 0:00:08]} 48. Kd2 {[%clk 0:00:42]}  Rg2+ {[%clk 0:00:07]} 49. Ke3 {[%clk 0:00:42]}  Rg3+ {[%clk 0:00:07]} 50. Kf2 {[%clk 0:00:42]}  Rd3 {[%clk 0:00:07]} 51. Ra6 {[%clk 0:00:42]}  Rxd4 {[%clk 0:00:07]} 52. Rxa5 {[%clk 0:00:42]}  Rc4 {[%clk 0:00:08]} 53. Ke3 {[%clk 0:00:43]}  Ke5 {[%clk 0:00:08]} 54. Kd3 {[%clk 0:00:43]}  Rc1 {[%clk 0:00:08]} 55. Ra6 {[%clk 0:00:42]}  Rxc5 {[%clk 0:00:07]} 56. Rxg6 {[%clk 0:00:42]}  Ra5 {[%clk 0:00:07]} 57. Rg5+ {[%clk 0:00:42]}  Kd6 {[%clk 0:00:07]} 58. Rh5 {[%clk 0:00:41]}  Ra3+ {[%clk 0:00:07]} 59. Kd4 {[%clk 0:00:41]}  Ra4+ {[%clk 0:00:07]} 60. Kd3 {[%clk 0:00:42]}  Ra3+ {[%clk 0:00:07]} 61. Kd4 {[%clk 0:00:42]}  Ra4+ {[%clk 0:00:08]} 62. Kd3 {[%clk 0:00:42]}  Ra3+ {[%clk 0:00:08]} 1/2-1/2


[Site "https://www.chess.com"]

[Event "Titled Tuesday Blitz September 28 2021"]
[White "Gasanov, Zaur"]
[Black "Babiy, Olga"]
[WhiteFideId "34125970"]
[BlackFideId "14117258"]
[WhiteElo "2099"]
[BlackElo "2253"]
[Result "1-0"]
[Round "09"]
[TimeControl "180+1"]
[Date "2021.09.28"]
[WhiteClock "0:00:04"]
[BlackClock "0:00:06"]

1. d4 {[%clk 0:02:44]}  Nf6 {[%clk 0:02:58]} 2. Nf3 {[%clk 0:02:44]}  c5 {[%clk 0:02:57]} 3. dxc5 {[%clk 0:02:44]}  e6 {[%clk 0:02:50]} 4. a3 {[%clk 0:02:43]}  Bxc5 {[%clk 0:02:48]} 5. b4 {[%clk 0:02:43]}  Be7 {[%clk 0:02:35]} 6. Bb2 {[%clk 0:02:43]}  O-O {[%clk 0:02:31]} 7. e3 {[%clk 0:02:42]}  d5 {[%clk 0:02:25]} 8. Nbd2 {[%clk 0:02:41]}  a6 {[%clk 0:02:23]} 9. c4 {[%clk 0:02:40]}  Nc6 {[%clk 0:02:18]} 10. Be2 {[%clk 0:02:39]}  b6 {[%clk 0:02:09]} 11. O-O {[%clk 0:02:32]}  Bb7 {[%clk 0:02:09]} 12. Qb3 {[%clk 0:02:31]}  Rc8 {[%clk 0:01:47]} 13. Rfd1 {[%clk 0:02:28]}  Qc7 {[%clk 0:01:45]} 14. Rac1 {[%clk 0:02:27]}  Qb8 {[%clk 0:01:28]} 15. cxd5 {[%clk 0:02:22]}  Nxd5 {[%clk 0:01:26]} 16. Nc4 {[%clk 0:02:15]}  b5 {[%clk 0:01:08]} 17. Nce5 {[%clk 0:02:13]}  Nxe5 {[%clk 0:01:00]} 18. Nxe5 {[%clk 0:02:12]}  Rxc1 {[%clk 0:00:49]} 19. Rxc1 {[%clk 0:02:11]}  Rc8 {[%clk 0:00:50]} 20. Rxc8+ {[%clk 0:01:50]}  Qxc8 {[%clk 0:00:50]} 21. Nd3 {[%clk 0:01:44]}  f6 {[%clk 0:00:36]} 22. Bf3 {[%clk 0:01:38]}  Nc7 {[%clk 0:00:28]} 23. Bxb7 {[%clk 0:01:33]}  Qxb7 {[%clk 0:00:29]} 24. Nf4 {[%clk 0:01:32]}  Kf7 {[%clk 0:00:28]} 25. h3 {[%clk 0:01:23]}  Qc6 {[%clk 0:00:25]} 26. Qd3 {[%clk 0:01:20]}  g6 {[%clk 0:00:25]} 27. Ne2 {[%clk 0:01:06]}  Qd6 {[%clk 0:00:23]} 28. Qc2 {[%clk 0:01:05]}  Nd5 {[%clk 0:00:22]} 29. Bd4 {[%clk 0:01:04]}  Qc7 {[%clk 0:00:20]} 30. Qb3 {[%clk 0:01:02]}  Qc4 {[%clk 0:00:20]} 31. Qxc4 {[%clk 0:00:55]}  bxc4 {[%clk 0:00:21]} 32. e4 {[%clk 0:00:55]}  Nc7 {[%clk 0:00:17]} 33. Nc3 {[%clk 0:00:55]}  Nb5 {[%clk 0:00:17]} 34. Nxb5 {[%clk 0:00:55]}  axb5 {[%clk 0:00:18]} 35. Kf1 {[%clk 0:00:56]}  e5 {[%clk 0:00:18]} 36. Be3 {[%clk 0:00:55]}  Ke6 {[%clk 0:00:19]} 37. Ke2 {[%clk 0:00:55]}  f5 {[%clk 0:00:19]} 38. f3 {[%clk 0:00:55]}  Bf8 {[%clk 0:00:18]} 39. Kd2 {[%clk 0:00:54]}  Kd7 {[%clk 0:00:16]} 40. Kc3 {[%clk 0:00:52]}  Kc6 {[%clk 0:00:16]} 41. a4 {[%clk 0:00:49]}  bxa4 {[%clk 0:00:17]} 42. Kxc4 {[%clk 0:00:49]}  a3 {[%clk 0:00:16]} 43. b5+ {[%clk 0:00:49]}  Kb7 {[%clk 0:00:15]} 44. Kb3 {[%clk 0:00:48]}  Bd6 {[%clk 0:00:15]} 45. exf5 {[%clk 0:00:47]}  gxf5 {[%clk 0:00:15]} 46. g4 {[%clk 0:00:47]}  f4 {[%clk 0:00:10]} 47. Bf2 {[%clk 0:00:40]}  Be7 {[%clk 0:00:10]} 48. h4 {[%clk 0:00:40]}  Kc7 {[%clk 0:00:10]} 49. h5 {[%clk 0:00:31]}  Kb7 {[%clk 0:00:10]} 50. Ka2 {[%clk 0:00:23]}  Kc7 {[%clk 0:00:10]} 51. Kb3 {[%clk 0:00:24]}  Kb7 {[%clk 0:00:11]} 52. Be1 {[%clk 0:00:22]}  Kc7 {[%clk 0:00:11]} 53. Bc3 {[%clk 0:00:18]}  Bd6 {[%clk 0:00:05]} 54. g5 {[%clk 0:00:18]}  Kd7 {[%clk 0:00:04]} 55. b6 {[%clk 0:00:15]}  Ke6 {[%clk 0:00:03]} 56. b7 {[%clk 0:00:14]}  Kf5 {[%clk 0:00:03]} 57. g6 {[%clk 0:00:07]}  hxg6 {[%clk 0:00:03]} 58. h6 {[%clk 0:00:07]}  Kf6 {[%clk 0:00:04]} 59. Kc4 {[%clk 0:00:07]}  g5 {[%clk 0:00:04]} 60. Kd5 {[%clk 0:00:07]}  Bb8 {[%clk 0:00:04]} 61. h7 {[%clk 0:00:02]}  Kg7 {[%clk 0:00:03]} 62. Bxe5+ {[%clk 0:00:03]}  Bxe5 {[%clk 0:00:03]} 63. Kxe5 {[%clk 0:00:04]}  a2 {[%clk 0:00:04]} 64. h8=Q+ {[%clk 0:00:04]}  Kxh8 {[%clk 0:00:01]} 65. b8=Q+ {[%clk 0:00:04]}  Kg7 {[%clk 0:00:02]} 66. Qa7+ {[%clk 0:00:05]}  Kg6 {[%clk 0:00:03]} 67. Qxa2 {[%clk 0:00:05]}  Kh5 {[%clk 0:00:04]} 68. Qg2 {[%clk 0:00:05]}  Kg6 {[%clk 0:00:04]} 69. Qg4 {[%clk 0:00:06]}  Kh6 {[%clk 0:00:04]} 70. Kf6 {[%clk 0:00:05]}  Kh7 {[%clk 0:00:05]} 71. Kf7 {[%clk 0:00:04]}  Kh6 {[%clk 0:00:06]} 72. Qh3# {[%clk 0:00:04]} 1-0


[Site "https://www.chess.com"]

[Event "Titled Tuesday Blitz September 28 2021"]
[White "Gelman, Alexander"]
[Black "Pasti, Aron"]
[WhiteFideId "4118316"]
[BlackFideId "785857"]
[WhiteElo "2375"]
[BlackElo "2080"]
[Result "1-0"]
[Round "09"]
[TimeControl "180+1"]
[Date "2021.09.28"]
[WhiteClock "0:00:09"]
[BlackClock "0:00:02"]

1. d4 {[%clk 0:03:00]}  d5 {[%clk 0:02:59]} 2. Nc3 {[%clk 0:03:00]}  Nf6 {[%clk 0:02:58]} 3. Bf4 {[%clk 0:03:00]}  Bf5 {[%clk 0:02:57]} 4. f3 {[%clk 0:03:00]}  c5 {[%clk 0:02:51]} 5. e4 {[%clk 0:03:00]}  dxe4 {[%clk 0:02:37]} 6. d5 {[%clk 0:03:00]}  Nbd7 {[%clk 0:02:23]} 7. g4 {[%clk 0:02:51]}  Bg6 {[%clk 0:02:21]} 8. h4 {[%clk 0:02:50]}  exf3 {[%clk 0:02:11]} 9. Qxf3 {[%clk 0:02:18]}  h5 {[%clk 0:01:24]} 10. g5 {[%clk 0:02:17]}  Ng4 {[%clk 0:01:23]} 11. O-O-O {[%clk 0:02:14]}  Qb6 {[%clk 0:01:18]} 12. Bh3 {[%clk 0:02:01]}  Bf5 {[%clk 0:01:05]} 13. Nge2 {[%clk 0:02:00]}  O-O-O {[%clk 0:00:50]} 14. Ng3 {[%clk 0:01:58]}  Nge5 {[%clk 0:00:48]} 15. Bxe5 {[%clk 0:01:42]}  Bxh3 {[%clk 0:00:47]} 16. Rxh3 {[%clk 0:01:39]}  Nxe5 {[%clk 0:00:42]} 17. Qf5+ {[%clk 0:01:39]}  Nd7 {[%clk 0:00:43]} 18. Qxf7 {[%clk 0:01:39]}  Kb8 {[%clk 0:00:37]} 19. Nge4 {[%clk 0:01:34]}  g6 {[%clk 0:00:34]} 20. d6 {[%clk 0:01:03]}  exd6 {[%clk 0:00:06]} 21. Nd5 {[%clk 0:01:02]}  Qc6 {[%clk 0:00:05]} 22. Qxg6 {[%clk 0:00:54]}  Rc8 {[%clk 0:00:02]} 23. Qf7 {[%clk 0:00:44]}  Ne5 {[%clk 0:00:02]} 24. Qf6 {[%clk 0:00:43]}  Rg8 {[%clk 0:00:02]} 25. Qe6 {[%clk 0:00:31]}  Rh8 {[%clk 0:00:02]} 26. Rc3 {[%clk 0:00:30]}  Re8 {[%clk 0:00:02]} 27. Qf6 {[%clk 0:00:27]}  Rg8 {[%clk 0:00:02]} 28. Nxc5 {[%clk 0:00:25]}  Bg7 {[%clk 0:00:01]} 29. Ne4 {[%clk 0:00:15]}  Qd7 {[%clk 0:00:01]} 30. Qf1 {[%clk 0:00:13]}  Nc6 {[%clk 0:00:01]} 31. Nef6 {[%clk 0:00:10]}  Qe6 {[%clk 0:00:01]} 32. Qb5 {[%clk 0:00:09]}  Ne5 {[%clk 0:00:01]} 33. Nxe8 {[%clk 0:00:09]}  Rxe8 {[%clk 0:00:02]} 34. Nc7 {[%clk 0:00:09]}  Qe7 {[%clk 0:00:01]} 35. Qxe8+ {[%clk 0:00:08]}  Qxe8 {[%clk 0:00:02]} 36. Nxe8 {[%clk 0:00:09]}  Nd7 {[%clk 0:00:02]} 37. Nxg7 {[%clk 0:00:09]} 1-0


[Site "https://www.chess.com"]

[Event "Titled Tuesday Blitz September 28 2021"]
[White "Golubev, Mikhail"]
[Black "Suvorov, Luca"]
[WhiteFideId "14100983"]
[BlackFideId "12977071"]
[WhiteElo "2374"]
[BlackElo "2127"]
[Result "1-0"]
[Round "09"]
[TimeControl "180+1"]
[Date "2021.09.28"]
[WhiteClock "0:02:11"]
[BlackClock "0:01:39"]

1. e4 {[%clk 0:03:00]}  c6 {[%clk 0:02:47]} 2. d4 {[%clk 0:03:00]}  d5 {[%clk 0:02:42]} 3. e5 {[%clk 0:03:00]}  Bf5 {[%clk 0:02:42]} 4. h4 {[%clk 0:03:00]}  h5 {[%clk 0:02:40]} 5. c4 {[%clk 0:02:58]}  e6 {[%clk 0:02:38]} 6. Nc3 {[%clk 0:02:58]}  Ne7 {[%clk 0:02:36]} 7. Nge2 {[%clk 0:02:49]}  dxc4 {[%clk 0:02:29]} 8. Ng3 {[%clk 0:02:49]}  b5 {[%clk 0:02:29]} 9. Bg5 {[%clk 0:02:33]}  Bg6 {[%clk 0:02:13]} 10. Nge4 {[%clk 0:02:21]}  Bxe4 {[%clk 0:02:04]} 11. Nxe4 {[%clk 0:02:22]}  f6 {[%clk 0:01:45]} 12. exf6 {[%clk 0:02:15]}  Qd5 {[%clk 0:01:39]} 13. Nc3 {[%clk 0:02:11]} 1-0


[Site "https://www.chess.com"]

[Event "Titled Tuesday Blitz September 28 2021"]
[White "Gontcharov, Vladislav"]
[Black "Kanyamarala, Trisha"]
[WhiteFideId "4123492"]
[BlackFideId "45004722"]
[WhiteElo "2503"]
[BlackElo "2038"]
[Result "1-0"]
[Round "09"]
[TimeControl "180+1"]
[Date "2021.09.28"]
[WhiteClock "0:00:08"]
[BlackClock "0:00:01"]

1. e4 {[%clk 0:03:00]}  c5 {[%clk 0:02:59]} 2. Nf3 {[%clk 0:02:59]}  d6 {[%clk 0:02:59]} 3. d4 {[%clk 0:02:59]}  cxd4 {[%clk 0:02:59]} 4. Qxd4 {[%clk 0:03:00]}  Nc6 {[%clk 0:02:57]} 5. Bb5 {[%clk 0:03:00]}  a6 {[%clk 0:02:57]} 6. Bxc6+ {[%clk 0:03:00]}  bxc6 {[%clk 0:02:58]} 7. c4 {[%clk 0:02:56]}  e5 {[%clk 0:02:58]} 8. Qd3 {[%clk 0:02:53]}  Nf6 {[%clk 0:02:58]} 9. Nc3 {[%clk 0:02:53]}  h6 {[%clk 0:02:55]} 10. O-O {[%clk 0:02:42]}  Qc7 {[%clk 0:02:54]} 11. c5 {[%clk 0:02:39]}  dxc5 {[%clk 0:02:51]} 12. Be3 {[%clk 0:02:39]}  Be6 {[%clk 0:02:49]} 13. Rac1 {[%clk 0:02:38]}  Be7 {[%clk 0:02:42]} 14. Na4 {[%clk 0:02:36]}  c4 {[%clk 0:02:41]} 15. Qc2 {[%clk 0:02:34]}  c5 {[%clk 0:02:40]} 16. Nd2 {[%clk 0:02:31]}  Ng4 {[%clk 0:02:37]} 17. Nxc4 {[%clk 0:02:27]}  Bxc4 {[%clk 0:02:29]} 18. Qxc4 {[%clk 0:02:27]}  Nxe3 {[%clk 0:02:26]} 19. fxe3 {[%clk 0:02:27]}  O-O {[%clk 0:02:17]} 20. Nc3 {[%clk 0:02:26]}  Bg5 {[%clk 0:02:10]} 21. Nd5 {[%clk 0:02:26]}  Qa5 {[%clk 0:02:07]} 22. b3 {[%clk 0:02:24]}  Qd2 {[%clk 0:02:01]} 23. Qxc5 {[%clk 0:01:48]}  Rac8 {[%clk 0:01:52]} 24. Qxc8 {[%clk 0:01:46]}  Rxc8 {[%clk 0:01:52]} 25. Rxc8+ {[%clk 0:01:37]}  Kh7 {[%clk 0:01:52]} 26. Rxf7 {[%clk 0:01:35]}  Bxe3+ {[%clk 0:01:47]} 27. Nxe3 {[%clk 0:01:31]}  Qxe3+ {[%clk 0:01:47]} 28. Rf2 {[%clk 0:01:31]}  Qxe4 {[%clk 0:01:44]} 29. Rc1 {[%clk 0:01:24]}  Qe3 {[%clk 0:01:38]} 30. Rd1 {[%clk 0:01:21]}  e4 {[%clk 0:01:38]} 31. Kf1 {[%clk 0:01:18]}  Qc5 {[%clk 0:01:27]} 32. Re2 {[%clk 0:01:14]}  Qf5+ {[%clk 0:01:26]} 33. Kg1 {[%clk 0:01:12]}  Qc5+ {[%clk 0:01:21]} 34. Kh1 {[%clk 0:01:11]}  Qa5 {[%clk 0:01:05]} 35. Rde1 {[%clk 0:01:10]}  Qa3 {[%clk 0:01:05]} 36. Rxe4 {[%clk 0:01:09]}  Qxa2 {[%clk 0:01:04]} 37. R4e3 {[%clk 0:01:07]}  a5 {[%clk 0:01:02]} 38. h3 {[%clk 0:01:06]}  Qa3 {[%clk 0:00:58]} 39. Kh2 {[%clk 0:01:04]}  h5 {[%clk 0:00:58]} 40. Rf3 {[%clk 0:00:56]}  a4 {[%clk 0:00:56]} 41. bxa4 {[%clk 0:00:44]}  Qxa4 {[%clk 0:00:55]} 42. Kh1 {[%clk 0:00:44]}  Qb4 {[%clk 0:00:53]} 43. Rfe3 {[%clk 0:00:43]}  Qd2 {[%clk 0:00:49]} 44. Re5 {[%clk 0:00:42]}  Kh6 {[%clk 0:00:47]} 45. Re6+ {[%clk 0:00:37]}  g6 {[%clk 0:00:47]} 46. Re8 {[%clk 0:00:37]}  Qc3 {[%clk 0:00:32]} 47. Rf1 {[%clk 0:00:30]}  Qc6 {[%clk 0:00:22]} 48. Ref8 {[%clk 0:00:24]}  Qc5 {[%clk 0:00:16]} 49. R1f7 {[%clk 0:00:21]}  Qc1+ {[%clk 0:00:14]} 50. Kh2 {[%clk 0:00:22]}  Qc3 {[%clk 0:00:11]} 51. Re8 {[%clk 0:00:17]}  Qd4 {[%clk 0:00:10]} 52. Re6 {[%clk 0:00:15]}  Qd3 {[%clk 0:00:03]} 53. Rff6 {[%clk 0:00:15]}  h4 {[%clk 0:00:02]} 54. Rd6 {[%clk 0:00:13]}  Qe3 {[%clk 0:00:02]} 55. Rxg6+ {[%clk 0:00:12]}  Kh7 {[%clk 0:00:02]} 56. Rde6 {[%clk 0:00:12]}  Qf4+ {[%clk 0:00:02]} 57. Kg1 {[%clk 0:00:12]}  Qc1+ {[%clk 0:00:01]} 58. Kf2 {[%clk 0:00:13]}  Qf4+ {[%clk 0:00:02]} 59. Ke2 {[%clk 0:00:13]}  Qc4+ {[%clk 0:00:02]} 60. Kf3 {[%clk 0:00:13]}  Qd3+ {[%clk 0:00:02]} 61. Kf4 {[%clk 0:00:12]}  Qd4+ {[%clk 0:00:02]} 62. Kg5 {[%clk 0:00:12]}  Qd1 {[%clk 0:00:02]} 63. Kxh4 {[%clk 0:00:12]}  Qd4+ {[%clk 0:00:01]} 64. Rg4 {[%clk 0:00:10]}  Qd1 {[%clk 0:00:01]} 65. Ree4 {[%clk 0:00:09]}  Qd2 {[%clk 0:00:01]} 66. Ref4 {[%clk 0:00:08]} 1-0


[Site "https://www.chess.com"]

[Event "Titled Tuesday Blitz September 28 2021"]
[White "Havanecz, Bianka"]
[Black "Matamoros Franco, Carlos S."]
[WhiteFideId "704814"]
[BlackFideId "3600017"]
[WhiteElo "2396"]
[BlackElo "2554"]
[Result "1-0"]
[Round "09"]
[TimeControl "180+1"]
[Date "2021.09.28"]
[WhiteClock "0:00:17"]
[BlackClock "0:00:20"]

1. d4 {[%clk 0:03:00]}  Nf6 {[%clk 0:02:58]} 2. c4 {[%clk 0:03:00]}  c5 {[%clk 0:02:58]} 3. d5 {[%clk 0:03:01]}  g6 {[%clk 0:02:58]} 4. Nc3 {[%clk 0:03:00]}  Bg7 {[%clk 0:02:59]} 5. e4 {[%clk 0:03:00]}  d6 {[%clk 0:02:59]} 6. Bd3 {[%clk 0:03:00]}  O-O {[%clk 0:02:58]} 7. Nge2 {[%clk 0:03:01]}  e6 {[%clk 0:02:56]} 8. O-O {[%clk 0:03:00]}  exd5 {[%clk 0:02:54]} 9. exd5 {[%clk 0:03:01]}  Ng4 {[%clk 0:02:51]} 10. f4 {[%clk 0:02:41]}  f5 {[%clk 0:02:31]} 11. h3 {[%clk 0:02:38]}  Nh6 {[%clk 0:02:30]} 12. Be3 {[%clk 0:02:22]}  Nd7 {[%clk 0:02:27]} 13. Bf2 {[%clk 0:02:20]}  Nf6 {[%clk 0:02:13]} 14. Bh4 {[%clk 0:02:13]}  Bd7 {[%clk 0:02:13]} 15. a4 {[%clk 0:02:11]}  Qa5 {[%clk 0:02:05]} 16. Nb5 {[%clk 0:02:04]}  Nf7 {[%clk 0:02:00]} 17. Be1 {[%clk 0:01:52]}  Qd8 {[%clk 0:01:59]} 18. Bc3 {[%clk 0:01:41]}  a6 {[%clk 0:01:50]} 19. Na3 {[%clk 0:01:41]}  Re8 {[%clk 0:01:40]} 20. Nc2 {[%clk 0:01:24]}  Ne4 {[%clk 0:01:33]} 21. Bxg7 {[%clk 0:01:23]}  Kxg7 {[%clk 0:01:34]} 22. Ra3 {[%clk 0:01:14]}  b5 {[%clk 0:01:03]} 23. axb5 {[%clk 0:01:00]}  axb5 {[%clk 0:01:04]} 24. cxb5 {[%clk 0:00:58]}  Qb6 {[%clk 0:01:02]} 25. Bxe4 {[%clk 0:00:44]}  fxe4 {[%clk 0:00:44]} 26. Nc3 {[%clk 0:00:39]}  Bxb5 {[%clk 0:00:35]} 27. Rxa8 {[%clk 0:00:18]}  Rxa8 {[%clk 0:00:33]} 28. Nxb5 {[%clk 0:00:19]}  Qxb5 {[%clk 0:00:34]} 29. Re1 {[%clk 0:00:19]}  Re8 {[%clk 0:00:32]} 30. Qc1 {[%clk 0:00:18]}  Nh6 {[%clk 0:00:28]} 31. Ne3 {[%clk 0:00:17]}  Nf5 {[%clk 0:00:23]} 32. Nxf5+ {[%clk 0:00:17]}  gxf5 {[%clk 0:00:24]} 33. Qc3+ {[%clk 0:00:18]}  Kf7 {[%clk 0:00:23]} 34. g4 {[%clk 0:00:18]}  Rg8 {[%clk 0:00:22]} 35. g5 {[%clk 0:00:19]}  h6 {[%clk 0:00:22]} 36. h4 {[%clk 0:00:19]}  hxg5 {[%clk 0:00:22]} 37. hxg5 {[%clk 0:00:19]}  Qa4 {[%clk 0:00:20]} 38. Qf6+ {[%clk 0:00:17]}  Ke8 {[%clk 0:00:19]} 39. Qe6+ {[%clk 0:00:18]}  Kf8 {[%clk 0:00:20]} 40. Qf6+ {[%clk 0:00:17]}  Ke8 {[%clk 0:00:20]} 41. Qe6+ {[%clk 0:00:17]}  Kf8 {[%clk 0:00:20]} 42. Qxd6+ {[%clk 0:00:18]}  Ke8 {[%clk 0:00:19]} 43. Qe6+ {[%clk 0:00:17]}  Kf8 {[%clk 0:00:20]} 44. Qxf5+ {[%clk 0:00:17]}  Kg7 {[%clk 0:00:19]} 45. Qf6+ {[%clk 0:00:17]}  Kh7 {[%clk 0:00:20]} 46. Qh6# {[%clk 0:00:17]} 1-0


[Site "https://www.chess.com"]